[Event "Early Titled Tuesday Blitz | February 8 2022"]
[White "Jain Kashish Manoj"]
[Black "Mirzanurov, Bulat"]
[WhiteFideId "35081098"]
[BlackFideId "4184521"]
[WhiteElo "1681"]
[BlackElo "2116"]
[Result "1-0"]
[Round "11"]
[TimeControl "180+1"]
[Date "2022.02.08"]
[WhiteClock "0:01:31"]
[BlackClock "0:00:57"]

1. e4 {[%clk 0:03:00]}  c5 {[%clk 0:02:57]} 2. Nf3 {[%clk 0:03:01]}  d6 {[%clk 0:02:54]} 3. d4 {[%clk 0:03:01]}  cxd4 {[%clk 0:02:52]} 4. Nxd4 {[%clk 0:03:02]}  Nf6 {[%clk 0:02:52]} 5. Nc3 {[%clk 0:03:03]}  a6 {[%clk 0:02:51]} 6. Be3 {[%clk 0:03:03]}  e5 {[%clk 0:02:50]} 7. Nf3 {[%clk 0:03:04]}  Be7 {[%clk 0:02:48]} 8. Bc4 {[%clk 0:03:04]}  Nbd7 {[%clk 0:02:48]} 9. O-O {[%clk 0:03:04]}  O-O {[%clk 0:02:47]} 10. Qe2 {[%clk 0:03:05]}  b5 {[%clk 0:02:46]} 11. Bb3 {[%clk 0:03:02]}  Bb7 {[%clk 0:02:38]} 12. Bg5 {[%clk 0:02:24]}  h6 {[%clk 0:02:32]} 13. Bxf6 {[%clk 0:02:19]}  Nxf6 {[%clk 0:02:31]} 14. Rfd1 {[%clk 0:02:20]}  b4 {[%clk 0:02:29]} 15. Nd5 {[%clk 0:02:19]}  Nxd5 {[%clk 0:02:28]} 16. Bxd5 {[%clk 0:02:20]}  Bxd5 {[%clk 0:02:27]} 17. Rxd5 {[%clk 0:02:21]}  Qc7 {[%clk 0:02:28]} 18. Rad1 {[%clk 0:02:19]}  Rfd8 {[%clk 0:02:26]} 19. R1d3 {[%clk 0:02:14]}  Rac8 {[%clk 0:02:24]} 20. Ne1 {[%clk 0:02:14]}  a5 {[%clk 0:02:20]} 21. Qg4 {[%clk 0:02:13]}  g6 {[%clk 0:02:13]} 22. Rh3 {[%clk 0:02:11]}  Kg7 {[%clk 0:02:10]} 23. Qf3 {[%clk 0:02:07]}  a4 {[%clk 0:02:08]} 24. Rg3 {[%clk 0:02:06]}  Qc4 {[%clk 0:02:02]} 25. Rg4 {[%clk 0:02:01]}  h5 {[%clk 0:01:51]} 26. Rg3 {[%clk 0:02:00]}  h4 {[%clk 0:01:45]} 27. Rg4 {[%clk 0:01:58]}  b3 {[%clk 0:01:41]} 28. axb3 {[%clk 0:01:55]}  axb3 {[%clk 0:01:41]} 29. c3 {[%clk 0:01:55]}  Rc5 {[%clk 0:01:36]} 30. Nd3 {[%clk 0:01:52]}  Rxd5 {[%clk 0:01:32]} 31. exd5 {[%clk 0:01:53]}  Qa6 {[%clk 0:01:32]} 32. h3 {[%clk 0:01:52]}  f5 {[%clk 0:01:29]} 33. Qxf5 {[%clk 0:01:52]}  g5 {[%clk 0:01:25]} 34. Kh2 {[%clk 0:01:48]}  Rf8 {[%clk 0:01:23]} 35. Qe4 {[%clk 0:01:49]}  Bf6 {[%clk 0:01:16]} 36. c4 {[%clk 0:01:33]}  Rc8 {[%clk 0:01:08]} 37. c5 {[%clk 0:01:31]}  dxc5 {[%clk 0:01:04]} 38. Nxe5 {[%clk 0:01:31]}  Re8 {[%clk 0:01:01]} 39. Qg6+ {[%clk 0:01:31]}  Kf8 {[%clk 0:00:57]} 40. Qf7# {[%clk 0:01:31]} 1-0


[Site "https://www.chess.com"]

[Event "Early Titled Tuesday Blitz | February 8 2022"]
[White "Jaivardhan Raj"]
[Black "Aggelis, Nikolaos"]
[WhiteFideId "25744437"]
[BlackFideId "4213220"]
[WhiteElo "1375"]
[BlackElo "2154"]
[Result "0-1"]
[Round "11"]
[TimeControl "180+1"]
[Date "2022.02.08"]
[WhiteClock "0:00:06"]
[BlackClock "0:01:34"]

1. e4 {[%clk 0:03:00]}  c5 {[%clk 0:03:00]} 2. Nf3 {[%clk 0:02:59]}  e6 {[%clk 0:03:00]} 3. d4 {[%clk 0:02:58]}  cxd4 {[%clk 0:03:01]} 4. Nxd4 {[%clk 0:02:58]}  Nf6 {[%clk 0:03:02]} 5. Nc3 {[%clk 0:02:57]}  Nc6 {[%clk 0:03:02]} 6. Ndb5 {[%clk 0:02:55]}  Bc5 {[%clk 0:03:02]} 7. Be2 {[%clk 0:02:50]}  O-O {[%clk 0:02:51]} 8. O-O {[%clk 0:02:48]}  a6 {[%clk 0:02:46]} 9. Nd6 {[%clk 0:02:48]}  Qe7 {[%clk 0:02:46]} 10. Nc4 {[%clk 0:02:45]}  b5 {[%clk 0:02:42]} 11. Ne3 {[%clk 0:02:39]}  b4 {[%clk 0:02:39]} 12. Na4 {[%clk 0:02:39]}  Ba7 {[%clk 0:02:38]} 13. Bd3 {[%clk 0:02:33]}  d5 {[%clk 0:02:35]} 14. exd5 {[%clk 0:02:31]}  exd5 {[%clk 0:02:36]} 15. Re1 {[%clk 0:02:26]}  Qc7 {[%clk 0:02:28]} 16. b3 {[%clk 0:02:19]}  Bd4 {[%clk 0:02:25]} 17. Rb1 {[%clk 0:02:17]}  g6 {[%clk 0:02:25]} 18. Qf3 {[%clk 0:02:15]}  Kg7 {[%clk 0:02:24]} 19. Nxd5 {[%clk 0:02:03]}  Nxd5 {[%clk 0:02:25]} 20. Qxd5 {[%clk 0:02:04]}  Be6 {[%clk 0:02:25]} 21. Qg5 {[%clk 0:02:01]}  Kg8 {[%clk 0:02:21]} 22. Bf4 {[%clk 0:01:51]}  Qa7 {[%clk 0:02:18]} 23. Re2 {[%clk 0:01:47]}  Bg7 {[%clk 0:02:10]} 24. Nb2 {[%clk 0:01:46]}  Nd4 {[%clk 0:02:10]} 25. Re3 {[%clk 0:01:27]}  Bf5 {[%clk 0:02:09]} 26. Rbe1 {[%clk 0:01:23]}  Ne6 {[%clk 0:02:09]} 27. Qg3 {[%clk 0:01:21]}  Nxf4 {[%clk 0:02:09]} 28. Qxf4 {[%clk 0:01:20]}  Bxb2 {[%clk 0:02:07]} 29. Bxf5 {[%clk 0:01:20]}  gxf5 {[%clk 0:02:08]} 30. Rg3+ {[%clk 0:01:20]}  Kh8 {[%clk 0:02:08]} 31. Qxf5 {[%clk 0:01:18]}  Rae8 {[%clk 0:02:02]} 32. Rd1 {[%clk 0:01:14]}  Qd4 {[%clk 0:01:58]} 33. Rgd3 {[%clk 0:01:01]}  Qe5 {[%clk 0:01:56]} 34. Qxe5+ {[%clk 0:00:39]}  Bxe5 {[%clk 0:01:57]} 35. g3 {[%clk 0:00:32]}  Rc8 {[%clk 0:01:54]} 36. f4 {[%clk 0:00:29]}  Bf6 {[%clk 0:01:48]} 37. Rd6 {[%clk 0:00:26]}  Kg7 {[%clk 0:01:46]} 38. R1d2 {[%clk 0:00:23]}  a5 {[%clk 0:01:43]} 39. g4 {[%clk 0:00:23]}  Rfd8 {[%clk 0:01:40]} 40. g5 {[%clk 0:00:19]}  Rxd6 {[%clk 0:01:39]} 41. Rxd6 {[%clk 0:00:18]}  Be7 {[%clk 0:01:37]} 42. Rd7 {[%clk 0:00:18]}  Kf8 {[%clk 0:01:36]} 43. f5 {[%clk 0:00:14]}  Bxg5 {[%clk 0:01:35]} 44. Ra7 {[%clk 0:00:07]}  Be3+ {[%clk 0:01:33]} 45. Kf1 {[%clk 0:00:06]}  Bxa7 {[%clk 0:01:34]} 0-1


[Site "https://www.chess.com"]

[Event "Early Titled Tuesday Blitz | February 8 2022"]
[White "Janaszak, Dawid"]
[Black "Hamley, Ryan"]
[WhiteFideId "1119206"]
[BlackFideId "30959497"]
[WhiteElo "2199"]
[BlackElo "2478"]
[Result "1-0"]
[Round "11"]
[TimeControl "180+1"]
[Date "2022.02.08"]
[WhiteClock "0:01:24"]
[BlackClock "0:00:08"]

1. e4 {[%clk 0:03:00]}  c6 {[%clk 0:02:53]} 2. d4 {[%clk 0:02:57]}  d5 {[%clk 0:02:54]} 3. exd5 {[%clk 0:02:58]}  cxd5 {[%clk 0:02:54]} 4. Bd3 {[%clk 0:02:57]}  Nc6 {[%clk 0:02:54]} 5. c3 {[%clk 0:02:58]}  Nf6 {[%clk 0:02:54]} 6. Bf4 {[%clk 0:02:56]}  Bg4 {[%clk 0:02:54]} 7. Qb3 {[%clk 0:02:57]}  Qd7 {[%clk 0:02:54]} 8. Nd2 {[%clk 0:02:56]}  e6 {[%clk 0:02:54]} 9. Ngf3 {[%clk 0:02:57]}  Bd6 {[%clk 0:02:55]} 10. Bxd6 {[%clk 0:02:57]}  Qxd6 {[%clk 0:02:56]} 11. O-O {[%clk 0:02:57]}  O-O {[%clk 0:02:49]} 12. Rae1 {[%clk 0:02:57]}  Ne7 {[%clk 0:02:47]} 13. Ne5 {[%clk 0:02:55]}  Bf5 {[%clk 0:02:47]} 14. f4 {[%clk 0:02:54]}  a6 {[%clk 0:02:43]} 15. h3 {[%clk 0:02:46]}  Bxd3 {[%clk 0:02:39]} 16. Nxd3 {[%clk 0:02:47]}  Rac8 {[%clk 0:02:33]} 17. Qxb7 {[%clk 0:02:34]}  Rb8 {[%clk 0:02:17]} 18. Qa7 {[%clk 0:02:34]}  Rb6 {[%clk 0:02:17]} 19. c4 {[%clk 0:02:23]}  dxc4 {[%clk 0:02:03]} 20. Nxc4 {[%clk 0:02:18]}  Qxd4+ {[%clk 0:02:02]} 21. Nf2 {[%clk 0:02:18]}  Qxc4 {[%clk 0:01:48]} 22. Qxb6 {[%clk 0:02:17]}  Ned5 {[%clk 0:01:48]} 23. Qb3 {[%clk 0:02:13]}  Qxb3 {[%clk 0:01:46]} 24. axb3 {[%clk 0:02:13]}  Nxf4 {[%clk 0:01:47]} 25. Ra1 {[%clk 0:02:07]}  Ra8 {[%clk 0:01:26]} 26. b4 {[%clk 0:02:07]}  h5 {[%clk 0:01:19]} 27. b5 {[%clk 0:02:07]}  a5 {[%clk 0:01:19]} 28. Ra4 {[%clk 0:01:56]}  N6d5 {[%clk 0:01:14]} 29. Rfa1 {[%clk 0:01:55]}  Rb8 {[%clk 0:01:07]} 30. Rxa5 {[%clk 0:01:54]}  Nc7 {[%clk 0:01:07]} 31. Ra7 {[%clk 0:01:45]}  Nxb5 {[%clk 0:01:07]} 32. Ra8 {[%clk 0:01:46]}  Rf8 {[%clk 0:01:00]} 33. Ne4 {[%clk 0:01:40]}  Nc7 {[%clk 0:00:52]} 34. Rxf8+ {[%clk 0:01:38]}  Kxf8 {[%clk 0:00:53]} 35. b4 {[%clk 0:01:39]}  Nfd5 {[%clk 0:00:50]} 36. Ra7 {[%clk 0:01:30]}  Nb5 {[%clk 0:00:11]} 37. Rb7 {[%clk 0:01:30]}  Ndc7 {[%clk 0:00:08]} 38. Nd6 {[%clk 0:01:26]}  Nxd6 {[%clk 0:00:07]} 39. Rxc7 {[%clk 0:01:26]}  Ne8 {[%clk 0:00:08]} 40. Rd7 {[%clk 0:01:24]} 1-0


[Site "https://www.chess.com"]

[Event "Early Titled Tuesday Blitz | February 8 2022"]
[White "Jaskolka, Tomasz"]
[Black "Lakshmi C"]
[WhiteFideId "1170791"]
[BlackFideId "25035347"]
[WhiteElo "2054"]
[BlackElo "1775"]
[Result "1-0"]
[Round "11"]
[TimeControl "180+1"]
[Date "2022.02.08"]
[WhiteClock "0:00:21"]
[BlackClock "0:00:01"]

1. e4 {[%clk 0:03:00]}  c5 {[%clk 0:02:59]} 2. Nf3 {[%clk 0:03:00]}  Nc6 {[%clk 0:02:59]} 3. d4 {[%clk 0:03:00]}  cxd4 {[%clk 0:02:59]} 4. Nxd4 {[%clk 0:03:00]}  Nf6 {[%clk 0:02:59]} 5. Nc3 {[%clk 0:03:00]}  e5 {[%clk 0:03:00]} 6. Ndb5 {[%clk 0:03:00]}  d6 {[%clk 0:02:59]} 7. Bg5 {[%clk 0:02:59]}  a6 {[%clk 0:02:59]} 8. Na3 {[%clk 0:02:59]}  b5 {[%clk 0:02:59]} 9. Nd5 {[%clk 0:02:57]}  Be7 {[%clk 0:02:59]} 10. Bxf6 {[%clk 0:02:57]}  Bxf6 {[%clk 0:02:59]} 11. c4 {[%clk 0:02:53]}  b4 {[%clk 0:02:59]} 12. Nc2 {[%clk 0:02:53]}  Rb8 {[%clk 0:02:58]} 13. g3 {[%clk 0:02:52]}  Bg5 {[%clk 0:02:56]} 14. Bg2 {[%clk 0:02:51]}  O-O {[%clk 0:02:22]} 15. O-O {[%clk 0:02:50]}  f5 {[%clk 0:02:10]} 16. f4 {[%clk 0:02:43]}  exf4 {[%clk 0:02:01]} 17. gxf4 {[%clk 0:02:44]}  Bf6 {[%clk 0:02:00]} 18. Nxf6+ {[%clk 0:02:44]}  Qxf6 {[%clk 0:01:57]} 19. Qd5+ {[%clk 0:02:43]}  Be6 {[%clk 0:01:48]} 20. Qxc6 {[%clk 0:02:43]}  fxe4 {[%clk 0:01:48]} 21. Qxe4 {[%clk 0:02:34]}  Bf5 {[%clk 0:01:42]} 22. Qd5+ {[%clk 0:02:34]}  Kh8 {[%clk 0:01:42]} 23. Ne3 {[%clk 0:02:27]}  Bg6 {[%clk 0:01:37]} 24. Rf2 {[%clk 0:02:19]}  Rfe8 {[%clk 0:01:34]} 25. Re1 {[%clk 0:02:18]}  b3 {[%clk 0:01:20]} 26. axb3 {[%clk 0:01:46]}  Rxb3 {[%clk 0:01:15]} 27. Rfe2 {[%clk 0:01:37]}  Rxb2 {[%clk 0:01:11]} 28. Ng4 {[%clk 0:01:10]}  Rbxe2 {[%clk 0:01:09]} 29. Rxe2 {[%clk 0:01:05]}  Qa1+ {[%clk 0:00:22]} 30. Kf2 {[%clk 0:01:04]}  Rxe2+ {[%clk 0:00:19]} 31. Kxe2 {[%clk 0:01:05]}  Qa2+ {[%clk 0:00:19]} 32. Ke1 {[%clk 0:01:01]}  Qb1+ {[%clk 0:00:17]} 33. Kf2 {[%clk 0:01:01]}  Qc2+ {[%clk 0:00:07]} 34. Kg3 {[%clk 0:01:01]}  h5 {[%clk 0:00:05]} 35. Ne3 {[%clk 0:00:35]}  h4+ {[%clk 0:00:04]} 36. Kxh4 {[%clk 0:00:31]}  Qf2+ {[%clk 0:00:04]} 37. Kg5 {[%clk 0:00:25]}  Kh7 {[%clk 0:00:01]} 38. Qf3 {[%clk 0:00:21]} 1-0


[Site "https://www.chess.com"]

[Event "Early Titled Tuesday Blitz | February 8 2022"]
[White "Jobava, Baadur"]
[Black "Martinovici, Ilia"]
[WhiteFideId "13601520"]
[BlackFideId "13907034"]
[WhiteElo "2617"]
[BlackElo "2303"]
[Result "1/2-1/2"]
[Round "11"]
[TimeControl "180+1"]
[Date "2022.02.08"]
[WhiteClock "0:01:37"]
[BlackClock "0:00:05"]

1. b3 {[%clk 0:03:00]}  Nf6 {[%clk 0:02:58]} 2. Bb2 {[%clk 0:03:01]}  e6 {[%clk 0:02:58]} 3. g3 {[%clk 0:03:00]}  d5 {[%clk 0:02:58]} 4. Bg2 {[%clk 0:03:01]}  c5 {[%clk 0:02:58]} 5. Nf3 {[%clk 0:03:01]}  Nc6 {[%clk 0:02:58]} 6. O-O {[%clk 0:03:02]}  Be7 {[%clk 0:02:57]} 7. c4 {[%clk 0:03:02]}  O-O {[%clk 0:02:57]} 8. e3 {[%clk 0:03:02]}  b6 {[%clk 0:02:56]} 9. Nc3 {[%clk 0:03:02]}  Bb7 {[%clk 0:02:55]} 10. cxd5 {[%clk 0:03:01]}  Nxd5 {[%clk 0:02:55]} 11. Nxd5 {[%clk 0:03:02]}  Qxd5 {[%clk 0:02:55]} 12. d4 {[%clk 0:03:00]}  Bf6 {[%clk 0:02:39]} 13. Rc1 {[%clk 0:02:58]}  Qd8 {[%clk 0:02:32]} 14. Ne5 {[%clk 0:02:42]}  Bxe5 {[%clk 0:02:32]} 15. dxe5 {[%clk 0:02:43]}  Qxd1 {[%clk 0:02:31]} 16. Rfxd1 {[%clk 0:02:43]}  Rfd8 {[%clk 0:02:31]} 17. Rd6 {[%clk 0:02:41]}  Na5 {[%clk 0:02:30]} 18. e4 {[%clk 0:02:35]}  Ba6 {[%clk 0:02:26]} 19. Bc3 {[%clk 0:02:18]}  Nb7 {[%clk 0:02:25]} 20. Rc6 {[%clk 0:02:18]}  Rd7 {[%clk 0:02:25]} 21. a4 {[%clk 0:02:17]}  Rad8 {[%clk 0:02:20]} 22. f4 {[%clk 0:02:16]}  Kf8 {[%clk 0:02:09]} 23. f5 {[%clk 0:02:16]}  Re8 {[%clk 0:01:35]} 24. Bh3 {[%clk 0:02:13]}  Bd3 {[%clk 0:01:16]} 25. fxe6 {[%clk 0:02:12]}  fxe6 {[%clk 0:00:58]} 26. Bxe6 {[%clk 0:02:13]}  Rde7 {[%clk 0:00:58]} 27. Bd5 {[%clk 0:02:13]}  g6 {[%clk 0:00:31]} 28. Kf2 {[%clk 0:02:13]}  Nd8 {[%clk 0:00:23]} 29. Rf6+ {[%clk 0:02:10]}  Kg7 {[%clk 0:00:22]} 30. Ke3 {[%clk 0:02:11]}  Ba6 {[%clk 0:00:21]} 31. e6 {[%clk 0:02:08]}  Kh6 {[%clk 0:00:19]} 32. h4 {[%clk 0:02:06]}  Nxe6 {[%clk 0:00:18]} 33. h5 {[%clk 0:02:06]}  Kxh5 {[%clk 0:00:11]} 34. Rh1+ {[%clk 0:02:06]}  Kg5 {[%clk 0:00:11]} 35. e5 {[%clk 0:02:06]}  Nd4 {[%clk 0:00:11]} 36. Bxd4 {[%clk 0:01:53]}  Rxe5+ {[%clk 0:00:10]} 37. Bxe5 {[%clk 0:01:47]}  Rxe5+ {[%clk 0:00:11]} 38. Be4 {[%clk 0:01:48]}  Kxf6 {[%clk 0:00:11]} 39. Rxh7 {[%clk 0:01:49]}  Bc8 {[%clk 0:00:08]} 40. Kd3 {[%clk 0:01:48]}  Bf5 {[%clk 0:00:08]} 41. Bxf5 {[%clk 0:01:48]}  Rxf5 {[%clk 0:00:09]} 42. Rxa7 {[%clk 0:01:48]}  Rf3+ {[%clk 0:00:09]} 43. Kc4 {[%clk 0:01:49]}  Rxg3 {[%clk 0:00:09]} 44. Rb7 {[%clk 0:01:49]}  Rg4+ {[%clk 0:00:07]} 45. Kc3 {[%clk 0:01:45]}  Rb4 {[%clk 0:00:08]} 46. Rb8 {[%clk 0:01:43]}  g5 {[%clk 0:00:09]} 47. a5 {[%clk 0:01:33]}  bxa5 {[%clk 0:00:08]} 48. Rc8 {[%clk 0:01:34]}  g4 {[%clk 0:00:07]} 49. Rc6+ {[%clk 0:01:35]}  Ke7 {[%clk 0:00:05]} 50. Rxc5 {[%clk 0:01:36]}  g3 {[%clk 0:00:04]} 51. Rg5 {[%clk 0:01:36]}  Rf4 {[%clk 0:00:03]} 52. Rg7+ {[%clk 0:01:36]}  Kd6 {[%clk 0:00:03]} 53. Rxg3 {[%clk 0:01:37]}  Kc5 {[%clk 0:00:04]} 54. Rg5+ {[%clk 0:01:37]}  Kb6 {[%clk 0:00:04]} 55. Kb2 {[%clk 0:01:37]}  Rb4 {[%clk 0:00:03]} 56. Ka3 {[%clk 0:01:37]}  Rb5 {[%clk 0:00:04]} 57. Rg6+ {[%clk 0:01:37]}  Kb7 {[%clk 0:00:05]} 58. Ka4 {[%clk 0:01:38]}  Rb4+ {[%clk 0:00:05]} 59. Kxa5 {[%clk 0:01:38]}  Rxb3 {[%clk 0:00:06]} 60. Rg4 {[%clk 0:01:37]}  Kc6 {[%clk 0:00:06]} 61. Rb4 {[%clk 0:01:36]}  Rxb4 {[%clk 0:00:05]} 62. Kxb4 {[%clk 0:01:37]} 1/2-1/2


[Site "https://www.chess.com"]

[Event "Early Titled Tuesday Blitz | February 8 2022"]
[White "Johnson, Ben"]
[Black "Derraugh, Geordie"]
[WhiteFideId "2010917"]
[BlackFideId "2603950"]
[WhiteElo "2162"]
[BlackElo "2116"]
[Result "0-1"]
[Round "11"]
[TimeControl "180+1"]
[Date "2022.02.08"]
[WhiteClock "0:00:04"]
[BlackClock "0:00:23"]

1. Nf3 {[%clk 0:03:00]}  Nf6 {[%clk 0:02:58]} 2. c4 {[%clk 0:02:58]}  g6 {[%clk 0:02:58]} 3. b3 {[%clk 0:02:57]}  Bg7 {[%clk 0:02:58]} 4. Bb2 {[%clk 0:02:57]}  O-O {[%clk 0:02:59]} 5. g3 {[%clk 0:02:56]}  c6 {[%clk 0:02:59]} 6. Bg2 {[%clk 0:02:54]}  d5 {[%clk 0:03:00]} 7. O-O {[%clk 0:02:49]}  Qb6 {[%clk 0:02:59]} 8. d3 {[%clk 0:02:44]}  Rd8 {[%clk 0:02:57]} 9. Qc1 {[%clk 0:02:34]}  Bf5 {[%clk 0:02:54]} 10. Nc3 {[%clk 0:02:29]}  Na6 {[%clk 0:02:49]} 11. Nh4 {[%clk 0:02:24]}  Be6 {[%clk 0:02:48]} 12. Na4 {[%clk 0:02:06]}  Qa5 {[%clk 0:02:43]} 13. Bc3 {[%clk 0:01:57]}  Qc7 {[%clk 0:02:44]} 14. c5 {[%clk 0:01:52]}  d4 {[%clk 0:02:40]} 15. Bd2 {[%clk 0:01:48]}  Bd5 {[%clk 0:02:37]} 16. Bf4 {[%clk 0:01:42]}  e5 {[%clk 0:02:36]} 17. Bg5 {[%clk 0:01:36]}  Bxg2 {[%clk 0:02:29]} 18. Nxg2 {[%clk 0:01:35]}  Rd5 {[%clk 0:02:23]} 19. a3 {[%clk 0:01:30]}  Re8 {[%clk 0:02:20]} 20. b4 {[%clk 0:01:26]}  e4 {[%clk 0:02:20]} 21. Bxf6 {[%clk 0:01:10]}  Bxf6 {[%clk 0:02:18]} 22. Nf4 {[%clk 0:01:10]}  Rf5 {[%clk 0:02:16]} 23. dxe4 {[%clk 0:01:02]}  Rxe4 {[%clk 0:02:15]} 24. Nd3 {[%clk 0:00:56]}  Rxe2 {[%clk 0:02:11]} 25. Nab2 {[%clk 0:00:50]}  Nb8 {[%clk 0:01:52]} 26. Qd1 {[%clk 0:00:45]}  Re8 {[%clk 0:01:48]} 27. Re1 {[%clk 0:00:43]}  Rxe1+ {[%clk 0:01:44]} 28. Qxe1 {[%clk 0:00:44]}  Nd7 {[%clk 0:01:43]} 29. Qe4 {[%clk 0:00:40]}  Ne5 {[%clk 0:01:36]} 30. Nxe5 {[%clk 0:00:35]}  Rxe5 {[%clk 0:01:36]} 31. Qf3 {[%clk 0:00:30]}  Kg7 {[%clk 0:01:17]} 32. Nd3 {[%clk 0:00:26]}  Rf5 {[%clk 0:01:16]} 33. Qe4 {[%clk 0:00:26]}  Qd7 {[%clk 0:01:14]} 34. Re1 {[%clk 0:00:24]}  h5 {[%clk 0:01:12]} 35. h4 {[%clk 0:00:21]}  a5 {[%clk 0:00:47]} 36. Re2 {[%clk 0:00:21]}  axb4 {[%clk 0:00:47]} 37. axb4 {[%clk 0:00:22]}  Qd5 {[%clk 0:00:41]} 38. Qxd5 {[%clk 0:00:20]}  Rxd5 {[%clk 0:00:42]} 39. Ra2 {[%clk 0:00:18]}  Rd7 {[%clk 0:00:41]} 40. Ra7 {[%clk 0:00:18]}  Kf8 {[%clk 0:00:32]} 41. Kg2 {[%clk 0:00:18]}  Ke7 {[%clk 0:00:32]} 42. f4 {[%clk 0:00:19]}  Ke6 {[%clk 0:00:32]} 43. Kf3 {[%clk 0:00:19]}  Kd5 {[%clk 0:00:32]} 44. f5 {[%clk 0:00:18]}  Kc4 {[%clk 0:00:31]} 45. Nf4 {[%clk 0:00:14]}  d3 {[%clk 0:00:26]} 46. Nxd3 {[%clk 0:00:04]}  Kxd3 {[%clk 0:00:23]} 47. fxg6 {[%clk 0:00:03]}  fxg6 {[%clk 0:00:23]} 48. Kf4 {[%clk 0:00:04]}  Kc4 {[%clk 0:00:23]} 0-1


[Site "https://www.chess.com"]

[Event "Early Titled Tuesday Blitz | February 8 2022"]
[White "Jumabayev, Rinat"]
[Black "Ter-Sahakyan, Samvel"]
[WhiteFideId "13702661"]
[BlackFideId "13302531"]
[WhiteElo "2561"]
[BlackElo "2592"]
[Result "1-0"]
[Round "11"]
[TimeControl "180+1"]
[Date "2022.02.08"]
[WhiteClock "0:01:05"]
[BlackClock "0:00:02"]

1. d4 {[%clk 0:03:00]}  Nf6 {[%clk 0:03:00]} 2. Nf3 {[%clk 0:03:01]}  d5 {[%clk 0:02:59]} 3. Bf4 {[%clk 0:03:01]}  Bf5 {[%clk 0:02:59]} 4. c4 {[%clk 0:03:00]}  e6 {[%clk 0:02:59]} 5. e3 {[%clk 0:02:58]}  Bxb1 {[%clk 0:02:57]} 6. Qxb1 {[%clk 0:02:59]}  Bb4+ {[%clk 0:02:57]} 7. Ke2 {[%clk 0:03:00]}  dxc4 {[%clk 0:02:46]} 8. Qc2 {[%clk 0:03:00]}  Nbd7 {[%clk 0:02:41]} 9. Qxc4 {[%clk 0:02:59]}  Bd6 {[%clk 0:02:42]} 10. g3 {[%clk 0:02:59]}  O-O {[%clk 0:02:36]} 11. Bg2 {[%clk 0:02:59]}  Qe7 {[%clk 0:02:33]} 12. Qb3 {[%clk 0:02:54]}  c5 {[%clk 0:02:11]} 13. Rac1 {[%clk 0:02:52]}  Rfc8 {[%clk 0:01:56]} 14. Rhd1 {[%clk 0:02:45]}  Bxf4 {[%clk 0:01:53]} 15. gxf4 {[%clk 0:02:44]}  Rab8 {[%clk 0:01:49]} 16. Ne5 {[%clk 0:02:34]}  g6 {[%clk 0:01:34]} 17. Qa3 {[%clk 0:02:21]}  a6 {[%clk 0:01:14]} 18. Rd2 {[%clk 0:01:46]}  Rc7 {[%clk 0:00:58]} 19. Nxd7 {[%clk 0:01:38]}  Nxd7 {[%clk 0:00:57]} 20. dxc5 {[%clk 0:01:38]}  Kf8 {[%clk 0:00:19]} 21. b4 {[%clk 0:01:30]}  Nf6 {[%clk 0:00:13]} 22. Qc3 {[%clk 0:01:19]}  Kg8 {[%clk 0:00:13]} 23. Qe5 {[%clk 0:01:19]}  Rbc8 {[%clk 0:00:13]} 24. Rcd1 {[%clk 0:01:18]}  a5 {[%clk 0:00:12]} 25. a3 {[%clk 0:01:17]}  axb4 {[%clk 0:00:13]} 26. axb4 {[%clk 0:01:18]}  Ne8 {[%clk 0:00:10]} 27. Bf3 {[%clk 0:01:17]}  Qh4 {[%clk 0:00:08]} 28. Qg5 {[%clk 0:01:06]}  Qxg5 {[%clk 0:00:04]} 29. fxg5 {[%clk 0:01:07]}  Kf8 {[%clk 0:00:04]} 30. Rd7 {[%clk 0:01:07]}  Rb8 {[%clk 0:00:03]} 31. Rxc7 {[%clk 0:01:06]}  Nxc7 {[%clk 0:00:04]} 32. Rd7 {[%clk 0:01:04]}  Na6 {[%clk 0:00:03]} 33. Bxb7 {[%clk 0:01:04]}  Nxb4 {[%clk 0:00:02]} 34. c6 {[%clk 0:01:05]} 1-0


[Site "https://www.chess.com"]

[Event "Early Titled Tuesday Blitz | February 8 2022"]
[White "Kanyamarala, Tarun"]
[Black "Popadic, Dragan"]
[WhiteFideId "45004714"]
[BlackFideId "913650"]
[WhiteElo "2144"]
[BlackElo "2199"]
[Result "0-1"]
[Round "11"]
[TimeControl "180+1"]
[Date "2022.02.08"]
[WhiteClock "0:00:03"]
[BlackClock "0:00:01"]

1. d4 {[%clk 0:03:00]}  Nf6 {[%clk 0:02:58]} 2. c4 {[%clk 0:03:01]}  g6 {[%clk 0:02:58]} 3. Nc3 {[%clk 0:02:59]}  Bg7 {[%clk 0:02:58]} 4. e4 {[%clk 0:02:59]}  d6 {[%clk 0:02:58]} 5. Nf3 {[%clk 0:02:56]}  O-O {[%clk 0:02:58]} 6. Be2 {[%clk 0:02:56]}  e5 {[%clk 0:02:57]} 7. d5 {[%clk 0:02:57]}  a5 {[%clk 0:02:57]} 8. Bg5 {[%clk 0:02:55]}  h6 {[%clk 0:02:56]} 9. Be3 {[%clk 0:02:50]}  Na6 {[%clk 0:02:56]} 10. h3 {[%clk 0:02:49]}  Nd7 {[%clk 0:02:48]} 11. a3 {[%clk 0:02:46]}  Rb8 {[%clk 0:02:46]} 12. Rb1 {[%clk 0:02:41]}  f5 {[%clk 0:02:43]} 13. exf5 {[%clk 0:02:22]}  gxf5 {[%clk 0:02:43]} 14. g4 {[%clk 0:02:23]}  Nf6 {[%clk 0:02:07]} 15. Nh4 {[%clk 0:02:08]}  f4 {[%clk 0:02:02]} 16. Bd2 {[%clk 0:02:05]}  Nc5 {[%clk 0:01:54]} 17. b4 {[%clk 0:02:04]}  axb4 {[%clk 0:01:53]} 18. axb4 {[%clk 0:02:04]}  Nce4 {[%clk 0:01:53]} 19. Nxe4 {[%clk 0:02:03]}  Nxe4 {[%clk 0:01:53]} 20. Nf5 {[%clk 0:01:59]}  Bxf5 {[%clk 0:01:46]} 21. gxf5 {[%clk 0:01:55]}  Qh4 {[%clk 0:01:39]} 22. Rh2 {[%clk 0:01:56]}  Nxd2 {[%clk 0:01:25]} 23. Qxd2 {[%clk 0:01:57]}  e4 {[%clk 0:01:26]} 24. Rg2 {[%clk 0:01:49]}  Kh8 {[%clk 0:01:21]} 25. Rg4 {[%clk 0:01:43]}  Qxh3 {[%clk 0:01:15]} 26. Qxf4 {[%clk 0:01:42]}  Rbe8 {[%clk 0:00:49]} 27. Kd1 {[%clk 0:00:28]}  e3 {[%clk 0:00:41]} 28. f3 {[%clk 0:00:20]}  Re5 {[%clk 0:00:29]} 29. Kc2 {[%clk 0:00:17]}  Rfxf5 {[%clk 0:00:21]} 30. Qd4 {[%clk 0:00:10]}  Qh2 {[%clk 0:00:17]} 31. Qd3 {[%clk 0:00:09]}  Rg5 {[%clk 0:00:10]} 32. Ra1 {[%clk 0:00:08]}  Re8 {[%clk 0:00:03]} 33. Rxg5 {[%clk 0:00:08]}  hxg5 {[%clk 0:00:03]} 34. Rf1 {[%clk 0:00:07]}  Kg8 {[%clk 0:00:02]} 35. Qg6 {[%clk 0:00:07]}  Qe5 {[%clk 0:00:01]} 36. Bd3 {[%clk 0:00:03]}  Qb2+ {[%clk 0:00:01]} 37. Kd1 {[%clk 0:00:03]}  Qd2# {[%clk 0:00:01]} 0-1


[Site "https://www.chess.com"]